Workbook

Sheet 2009_産業部門（農林水産業）
A1: 2009年データ
A2: 都道府県コード | B2: 都道府県 | C2: 市区町村コード | D2: 市区町村 | E2: 都道府県の 炭素排出量 (1,000tC) | F2: 都道府県の 従業者数 (人) | G2: 市区町村の 従業者数 (人) | H2: 係数 | I2: 市区町村の CO2排出量 (1,000tCO2) | J2: 備考
A3: 01 | B3: 北海道 | C3: 01100 | D3: 札幌市 | E3: 806 | F3: 47,803 | G3: 1,168 | H3: =44/12 -> 3.67 | I3: =E3/F3*G3*H3 -> 72
A4: 01 | B4: 北海道 | C4: 01202 | D4: 函館市 | E4: 806 | F4: 47,803 | G4: 492 | H4: =44/12 -> 3.67 | I4: =E4/F4*G4*H4 -> 30
A5: 01 | B5: 北海道 | C5: 01203 | D5: 小樽市 | E5: 806 | F5: 47,803 | G5: 188 | H5: 3.67 | I5: 12
A6: 01 | B6: 北海道 | C6: 01204 | D6: 旭川市 | E6: 806 | F6: 47,803 | G6: 849 | H6: 3.67 | I6: 53
A7: 01 | B7: 北海道 | C7: 01205 | D7: 室蘭市 | E7: 806 | F7: 47,803 | G7: 24 | H7: 3.67 | I7: 1
A8: 01 | B8: 北海道 | C8: 01206 | D8: 釧路市 | E8: 806 | F8: 47,803 | G8: 885 | H8: 3.67 | I8: 55
A9: 01 | B9: 北海道 | C9: 01207 | D9: 帯広市 | E9: 806 | F9: 47,803 | G9: 944 | H9: 3.67 | I9: 58
A10: 01 | B10: 北海道 | C10: 01208 | D10: 北見市 | E10: 806 | F10: 47,803 | G10: 1,532 | H10: 3.67 | I10: 95
A11: 01 | B11: 北海道 | C11: 01209 | D11: 夕張市 | E11: 806 | F11: 47,803 | G11: 54 | H11: 3.67 | I11: 3
A12: 01 | B12: 北海道 | C12: 01210 | D12: 岩見沢市 | E12: 806 | F12: 47,803 | G12: 1,112 | H12: 3.67 | I12: 69
A13: 01 | B13: 北海道 | C13: 01211 | D13: 網走市 | E13: 806 | F13: 47,803 | G13: 840 | H13: 3.67 | I13: 52
A14: 01 | B14: 北海道 | C14: 01212 | D14: 留萌市 | E14: 806 | F14: 47,803 | G14: 104 | H14: 3.67 | I14: 6
A15: 01 | B15: 北海道 | C15: 01213 | D15: 苫小牧市 | E15: 806 | F15: 47,803 | G15: 404 | H15: 3.67 | I15: 25
A16: 01 | B16: 北海道 | C16: 01214 | D16: 稚内市 | E16: 806 | F16: 47,803 | G16: 420 | H16: 3.67 | I16: 26
A17: 01 | B17: 北海道 | C17: 01215 | D17: 美唄市 | E17: 806 | F17: 47,803 | G17: 325 | H17: 3.67 | I17: 20
A18: 01 | B18: 北海道 | C18: 01216 | D18: 芦別市 | E18: 806 | F18: 47,803 | G18: 182 | H18: 3.67 | I18: 11
A19: 01 | B19: 北海道 | C19: 01217 | D19: 江別市 | E19: 806 | F19: 47,803 | G19: 506 | H19: 3.67 | I19: 31
A20: 01 | B20: 北海道 | C20: 01218 | D20: 赤平市 | E20: 806 | F20: 47,803 | G20: 50 | H20: 3.67 | I20: 3
A21: 01 | B21: 北海道 | C21: 01219 | D21: 紋別市 | E21: 806 | F21: 47,803 | G21: 237 | H21: 3.67 | I21: 15
A22: 01 | B22: 北海道 | C22: 01220 | D22: 士別市 | E22: 806 | F22: 47,803 | G22: 559 | H22: 3.67 | I22: 35
A23: 01 | B23: 北海道 | C23: 01221 | D23: 名寄市 | E23: 806 | F23: 47,803 | G23: 315 | H23: 3.67 | I23: 19
A24: 01 | B24: 北海道 | C24: 01222 | D24: 三笠市 | E24: 806 | F24: 47,803 | G24: 108 | H24: 3.67 | I24: 7
A25: 01 | B25: 北海道 | C25: 01223 | D25: 根室市 | E25: 806 | F25: 47,803 | G25: 682 | H25: 3.67 | I25: 42
A26: 01 | B26: 北海道 | C26: 01224 | D26: 千歳市 | E26: 806 | F26: 47,803 | G26: 447 | H26: 3.67 | I26: 28
A27: 01 | B27: 北海道 | C27: 01225 | D27: 滝川市 | E27: 806 | F27: 47,803 | G27: 248 | H27: 3.67 | I27: 15
A28: 01 | B28: 北海道 | C28: 01226 | D28: 砂川市 | E28: 806 | F28: 47,803 | G28: 153 | H28: 3.67 | I28: 9
A29: 01 | B29: 北海道 | C29: 01227 | D29: 歌志内市 | E29: 806 | F29: 47,803 | G29: 8 | H29: 3.67 | I29: 0
A30: 01 | B30: 北海道 | C30: 01228 | D30: 深川市 | E30: 806 | F30: 47,803 | G30: 240 | H30: 3.67 | I30: 15
A31: 01 | B31: 北海道 | C31: 01229 | D31: 富良野市 | E31: 806 | F31: 47,803 | G31: 900 | H31: 3.67 | I31: 56
A32: 01 | B32: 北海道 | C32: 01230 | D32: 登別市 | E32: 806 | F32: 47,803 | G32: 148 | H32: 3.67 | I32: 9
A33: 01 | B33: 北海道 | C33: 01231 | D33: 恵庭市 | E33: 806 | F33: 47,803 | G33: 393 | H33: 3.67 | I33: 24
A34: 01 | B34: 北海道 | C34: 01233 | D34: 伊達市 | E34: 806 | F34: 47,803 | G34: 532 | H34: 3.67 | I34: 33
A35: 01 | B35: 北海道 | C35: 01234 | D35: 北広島市 | E35: 806 | F35: 47,803 | G35: 292 | H35: 3.67 | I35: 18
A36: 01 | B36: 北海道 | C36: 01235 | D36: 石狩市 | E36: 806 | F36: 47,803 | G36: 401 | H36: 3.67 | I36: 25
A37: 01 | B37: 北海道 | C37: 01236 | D37: 北斗市 | E37: 806 | F37: 47,803 | G37: 175 | H37: 3.67 | I37: 11
A38: 01 | B38: 北海道 | C38: 01303 | D38: 当別町 | E38: 806 | F38: 47,803 | G38: 381 | H38: 3.67 | I38: 24
A39: 01 | B39: 北海道 | C39: 01304 | D39: 新篠津村 | E39: 806 | F39: 47,803 | G39: 314 | H39: 3.67 | I39: 19
A40: 01 | B40: 北海道 | C40: 01331 | D40: 松前町 | E40: 806 | F40: 47,803 | G40: 81 | H40: 3.67 | I40: 5
A41: 01 | B41: 北海道 | C41: 01332 | D41: 福島町 | E41: 806 | F41: 47,803 | G41: 24 | H41: 3.67 | I41: 1
A42: 01 | B42: 北海道 | C42: 01333 | D42: 知内町 | E42: 806 | F42: 47,803 | G42: 93 | H42: 3.67 | I42: 6
A43: 01 | B43: 北海道 | C43: 01334 | D43: 木古内町 | E43: 806 | F43: 47,803 | G43: 33 | H43: 3.67 | I43: 2
A44: 01 | B44: 北海道 | C44: 01337 | D44: 七飯町 | E44: 806 | F44: 47,803 | G44: 120 | H44: 3.67 | I44: 7
A45: 01 | B45: 北海道 | C45: 01343 | D45: 鹿部町 | E45: 806 | F45: 47,803 | G45: 25 | H45: 3.67 | I45: 2
A46: 01 | B46: 北海道 | C46: 01345 | D46: 森町 | E46: 806 | F46: 47,803 | G46: 169 | H46: 3.67 | I46: 10
A47: 01 | B47: 北海道 | C47: 01346 | D47: 八雲町 | E47: 806 | F47: 47,803 | G47: 439 | H47: 3.67 | I47: 27
A48: 01 | B48: 北海道 | C48: 01347 | D48: 長万部町 | E48: 806 | F48: 47,803 | G48: 85 | H48: 3.67 | I48: 5
A49: 01 | B49: 北海道 | C49: 01361 | D49: 江差町 | E49: 806 | F49: 47,803 | G49: 39 | H49: 3.67 | I49: 2
A50: 01 | B50: 北海道 | C50: 01362 | D50: 上ノ国町 | E50: 806 | F50: 47,803 | G50: 95 | H50: 3.67 | I50: 6
A51: 01 | B51: 北海道 | C51: 01363 | D51: 厚沢部町 | E51: 806 | F51: 47,803 | G51: 158 | H51: 3.67 | I51: 10
A52: 01 | B52: 北海道 | C52: 01364 | D52: 乙部町 | E52: 806 | F52: 47,803 | G52: 42 | H52: 3.67 | I52: 3
A53: 01 | B53: 北海道 | C53: 01367 | D53: 奥尻町 | E53: 806 | F53: 47,803 | G53: 12 | H53: 3.67 | I53: 1
A54: 01 | B54: 北海道 | C54: 01370 | D54: 今金町 | E54: 806 | F54: 47,803 | G54: 181 | H54: 3.67 | I54: 11
A55: 01 | B55: 北海道 | C55: 01371 | D55: せたな町 | E55: 806 | F55: 47,803 | G55: 77 | H55: 3.67 | I55: 5
A56: 01 | B56: 北海道 | C56: 01391 | D56: 島牧村 | E56: 806 | F56: 47,803 | G56: 21 | H56: 3.67 | I56: 1
A57: 01 | B57: 北海道 | C57: 01392 | D57: 寿都町 | E57: 806 | F57: 47,803 | G57: 57 | H57: 3.67 | I57: 4
A58: 01 | B58: 北海道 | C58: 01393 | D58: 黒松内町 | E58: 806 | F58: 47,803 | G58: 42 | H58: 3.67 | I58: 3
A59: 01 | B59: 北海道 | C59: 01394 | D59: 蘭越町 | E59: 806 | F59: 47,803 | G59: 174 | H59: 3.67 | I59: 11
A60: 01 | B60: 北海道 | C60: 01395 | D60: ニセコ町 | E60: 806 | F60: 47,803 | G60: 23 | H60: 3.67 | I60: 1
A61: 01 | B61: 北海道 | C61: 01396 | D61: 真狩村 | E61: 806 | F61: 47,803 | G61: 63 | H61: 3.67 | I61: 4
A62: 01 | B62: 北海道 | C62: 01397 | D62: 留寿都村 | E62: 806 | F62: 47,803 | G62: 35 | H62: 3.67 | I62: 2
A63: 01 | B63: 北海道 | C63: 01398 | D63: 喜茂別町 | E63: 806 | F63: 47,803 | G63: 19 | H63: 3.67 | I63: 1
A64: 01 | B64: 北海道 | C64: 01399 | D64: 京極町 | E64: 806 | F64: 47,803 | G64: 113 | H64: 3.67 | I64: 7
A65: 01 | B65: 北海道 | C65: 01400 | D65: 倶知安町 | E65: 806 | F65: 47,803 | G65: 219 | H65: 3.67 | I65: 14
A66: 01 | B66: 北海道 | C66: 01401 | D66: 共和町 | E66: 806 | F66: 47,803 | G66: 102 | H66: 3.67 | I66: 6
A67: 01 | B67: 北海道 | C67: 01402 | D67: 岩内町 | E67: 806 | F67: 47,803 | G67: 18 | H67: 3.67 | I67: 1
A68: 01 | B68: 北海道 | C68: 01403 | D68: 泊村 | E68: 806 | F68: 47,803 | G68: 2 | H68: =44/12 -> 3.67 | I68: =E68/F68*G68*H68 -> 0
A69: 01 | B69: 北海道 | C69: 01404 | D69: 神恵内村 | E69: 806 | F69: 47,803 | G69: 15 | H69: 3.67 | I69: 1
A70: 01 | B70: 北海道 | C70: 01405 | D70: 積丹町 | E70: 806 | F70: 47,803 | G70: 20 | H70: 3.67 | I70: 1
A71: 01 | B71: 北海道 | C71: 01406 | D71: 古平町 | E71: 806 | F71: 47,803 | G71: 39 | H71: 3.67 | I71: 2
A72: 01 | B72: 北海道 | C72: 01407 | D72: 仁木町 | E72: 806 | F72: 47,803 | G72: 52 | H72: 3.67 | I72: 3
A73: 01 | B73: 北海道 | C73: 01408 | D73: 余市町 | E73: 806 | F73: 47,803 | G73: 78 | H73: 3.67 | I73: 5
A74: 01 | B74: 北海道 | C74: 01409 | D74: 赤井川村 | E74: 806 | F74: 47,803 | G74: 76 | H74: 3.67 | I74: 5
A75: 01 | B75: 北海道 | C75: 01423 | D75: 南幌町 | E75: 806 | F75: 47,803 | G75: 251 | H75: 3.67 | I75: 16
A76: 01 | B76: 北海道 | C76: 01424 | D76: 奈井江町 | E76: 806 | F76: 47,803 | G76: 91 | H76: 3.67 | I76: 6
A77: 01 | B77: 北海道 | C77: 01425 | D77: 上砂川町 | E77: 806 | F77: 47,803 | G77: 82 | H77: 3.67 | I77: 5
A78: 01 | B78: 北海道 | C78: 01427 | D78: 由仁町 | E78: 806 | F78: 47,803 | G78: 160 | H78: 3.67 | I78: 10
A79: 01 | B79: 北海道 | C79: 01428 | D79: 長沼町 | E79: 806 | F79: 47,803 | G79: 493 | H79: 3.67 | I79: 30
A80: 01 | B80: 北海道 | C80: 01429 | D80: 栗山町 | E80: 806 | F80: 47,803 | G80: 399 | H80: 3.67 | I80: 25
A81: 01 | B81: 北海道 | C81: 01430 | D81: 月形町 | E81: 806 | F81: 47,803 | G81: 113 | H81: 3.67 | I81: 7
A82: 01 | B82: 北海道 | C82: 01431 | D82: 浦臼町 | E82: 806 | F82: 47,803 | G82: 107 | H82: 3.67 | I82: 7
A83: 01 | B83: 北海道 | C83: 01432 | D83: 新十津川町 | E83: 806 | F83: 47,803 | G83: 48 | H83: 3.67 | I83: 3
A84: 01 | B84: 北海道 | C84: 01433 | D84: 妹背牛町 | E84: 806 | F84: 47,803 | G84: 43 | H84: 3.67 | I84: 3
A85: 01 | B85: 北海道 | C85: 01434 | D85: 秩父別町 | E85: 806 | F85: 47,803 | G85: 113 | H85: 3.67 | I85: 7
A86: 01 | B86: 北海道 | C86: 01436 | D86: 雨竜町 | E86: 806 | F86: 47,803 | G86: 84 | H86: 3.67 | I86: 5
A87: 01 | B87: 北海道 | C87: 01437 | D87: 北竜町 | E87: 806 | F87: 47,803 | G87: 155 | H87: 3.67 | I87: 10
A88: 01 | B88: 北海道 | C88: 01438 | D88: 沼田町 | E88: 806 | F88: 47,803 | G88: 74 | H88: 3.67 | I88: 5
A89: 01 | B89: 北海道 | C89: 01452 | D89: 鷹栖町 | E89: 806 | F89: 47,803 | G89: 197 | H89: 3.67 | I89: 12
A90: 01 | B90: 北海道 | C90: 01453 | D90: 東神楽町 | E90: 806 | F90: 47,803 | G90: 213 | H90: 3.67 | I90: 13
A91: 01 | B91: 北海道 | C91: 01454 | D91: 当麻町 | E91: 806 | F91: 47,803 | G91: 197 | H91: 3.67 | I91: 12
A92: 01 | B92: 北海道 | C92: 01455 | D92: 比布町 | E92: 806 | F92: 47,803 | G92: 243 | H92: 3.67 | I92: 15
A93: 01 | B93: 北海道 | C93: 01456 | D93: 愛別町 | E93: 806 | F93: 47,803 | G93: 204 | H93: 3.67 | I93: 13
A94: 01 | B94: 北海道 | C94: 01457 | D94: 上川町 | E94: 806 | F94: 47,803 | G94: 138 | H94: 3.67 | I94: 9
A95: 01 | B95: 北海道 | C95: 01458 | D95: 東川町 | E95: 806 | F95: 47,803 | G95: 403 | H95: 3.67 | I95: 25
A96: 01 | B96: 北海道 | C96: 01459 | D96: 美瑛町 | E96: 806 | F96: 47,803 | G96: 507 | H96: 3.67 | I96: 31
A97: 01 | B97: 北海道 | C97: 01460 | D97: 上富良野町 | E97: 806 | F97: 47,803 | G97: 307 | H97: 3.67 | I97: 19
A98: 01 | B98: 北海道 | C98: 01461 | D98: 中富良野町 | E98: 806 | F98: 47,803 | G98: 143 | H98: 3.67 | I98: 9
A99: 01 | B99: 北海道 | C99: 01462 | D99: 南富良野町 | E99: 806 | F99: 47,803 | G99: 114 | H99: 3.67 | I99: 7
A100: 01 | B100: 北海道 | C100: 01463 | D100: 占冠村 | E100: 806 | F100: 47,803 | G100: 64 | H100: 3.67 | I100: 4
A101: 01 | B101: 北海道 | C101: 01464 | D101: 和寒町 | E101: 806 | F101: 47,803 | G101: 154 | H101: 3.67 | I101: 10
A102: 01 | B102: 北海道 | C102: 01465 | D102: 剣淵町 | E102: 806 | F102: 47,803 | G102: 12 | H102: 3.67 | I102: 1
A103: 01 | B103: 北海道 | C103: 01468 | D103: 下川町 | E103: 806 | F103: 47,803 | G103: 59 | H103: 3.67 | I103: 4
A104: 01 | B104: 北海道 | C104: 01469 | D104: 美深町 | E104: 806 | F104: 47,803 | G104: 115 | H104: 3.67 | I104: 7
A105: 01 | B105: 北海道 | C105: 01470 | D105: 音威子府村 | E105: 806 | F105: 47,803 | G105: 9 | H105: 3.67 | I105: 1
A106: 01 | B106: 北海道 | C106: 01471 | D106: 中川町 | E106: 806 | F106: 47,803 | G106: 72 | H106: 3.67 | I106: 4
A107: 01 | B107: 北海道 | C107: 01472 | D107: 幌加内町 | E107: 806 | F107: 47,803 | G107: 55 | H107: 3.67 | I107: 3 | J107: 市区町村コード改正
A108: 01 | B108: 北海道 | C108: 01481 | D108: 増毛町 | E108: 806 | F108: 47,803 | G108: 113 | H108: 3.67 | I108: 7
A109: 01 | B109: 北海道 | C109: 01482 | D109: 小平町 | E109: 806 | F109: 47,803 | G109: 84 | H109: 3.67 | I109: 5
A110: 01 | B110: 北海道 | C110: 01483 | D110: 苫前町 | E110: 806 | F110: 47,803 | G110: 142 | H110: 3.67 | I110: 9
A111: 01 | B111: 北海道 | C111: 01484 | D111: 羽幌町 | E111: 806 | F111: 47,803 | G111: 338 | H111: 3.67 | I111: 21
A112: 01 | B112: 北海道 | C112: 01485 | D112: 初山別村 | E112: 806 | F112: 47,803 | G112: 81 | H112: 3.67 | I112: 5
A113: 01 | B113: 北海道 | C113: 01486 | D113: 遠別町 | E113: 806 | F113: 47,803 | G113: 202 | H113: 3.67 | I113: 12
A114: 01 | B114: 北海道 | C114: 01487 | D114: 天塩町 | E114: 806 | F114: 47,803 | G114: 135 | H114: 3.67 | I114: 8
A115: 01 | B115: 北海道 | C115: 01511 | D115: 猿払村 | E115: 806 | F115: 47,803 | G115: 437 | H115: 3.67 | I115: 27
A116: 01 | B116: 北海道 | C116: 01512 | D116: 浜頓別町 | E116: 806 | F116: 47,803 | G116: 146 | H116: 3.67 | I116: 9
A117: 01 | B117: 北海道 | C117: 01513 | D117: 中頓別町 | E117: 806 | F117: 47,803 | G117: 33 | H117: 3.67 | I117: 2
A118: 01 | B118: 北海道 | C118: 01514 | D118: 枝幸町 | E118: 806 | F118: 47,803 | G118: 161 | H118: 3.67 | I118: 10
A119: 01 | B119: 北海道 | C119: 01516 | D119: 豊富町 | E119: 806 | F119: 47,803 | G119: 100 | H119: 3.67 | I119: 6
A120: 01 | B120: 北海道 | C120: 01517 | D120: 礼文町 | E120: 806 | F120: 47,803 | G120: 3 | H120: 3.67 | I120: 0
A121: 01 | B121: 北海道 | C121: 01518 | D121: 利尻町 | E121: 806 | F121: 47,803 | G121: 5 | H121: 3.67 | I121: 0
A122: 01 | B122: 北海道 | C122: 01519 | D122: 利尻富士町 | E122: 806 | F122: 47,803 | G122: 5 | H122: 3.67 | I122: 0
A123: 01 | B123: 北海道 | C123: 01520 | D123: 幌延町 | E123: 806 | F123: 47,803 | G123: 47 | H123: 3.67 | I123: 3 | J123: 市区町村コード改正
A124: 01 | B124: 北海道 | C124: 01543 | D124: 美幌町 | E124: 806 | F124: 47,803 | G124: 365 | H124: 3.67 | I124: 23
A125: 01 | B125: 北海道 | C125: 01544 | D125: 津別町 | E125: 806 | F125: 47,803 | G125: 305 | H125: 3.67 | I125: 19
A126: 01 | B126: 北海道 | C126: 01545 | D126: 斜里町 | E126: 806 | F126: 47,803 | G126: 471 | H126: 3.67 | I126: 29
A127: 01 | B127: 北海道 | C127: 01546 | D127: 清里町 | E127: 806 | F127: 47,803 | G127: 76 | H127: 3.67 | I127: 5
A128: 01 | B128: 北海道 | C128: 01547 | D128: 小清水町 | E128: 806 | F128: 47,803 | G128: 597 | H128: 3.67 | I128: 37
A129: 01 | B129: 北海道 | C129: 01549 | D129: 訓子府町 | E129: 806 | F129: 47,803 | G129: 33 | H129: 3.67 | I129: 2
A130: 01 | B130: 北海道 | C130: 01550 | D130: 置戸町 | E130: 806 | F130: 47,803 | G130: 198 | H130: 3.67 | I130: 12
A131: 01 | B131: 北海道 | C131: 01552 | D131: 佐呂間町 | E131: 806 | F131: 47,803 | G131: 123 | H131: 3.67 | I131: 8
A132: 01 | B132: 北海道 | C132: 01555 | D132: 遠軽町 | E132: 806 | F132: 47,803 | G132: 352 | H132: =44/12 -> 3.67 | I132: =E132/F132*G132*H132 -> 22
A133: 01 | B133: 北海道 | C133: 01559 | D133: 湧別町 | E133: 806 | F133: 47,803 | G133: 415 | H133: 3.67 | I133: 26 | J133: H21.10.5上湧別町、湧別町新設合併
A134: 01 | B134: 北海道 | C134: 01560 | D134: 滝上町 | E134: 806 | F134: 47,803 | G134: 136 | H134: 3.67 | I134: 8
A135: 01 | B135: 北海道 | C135: 01561 | D135: 興部町 | E135: 806 | F135: 47,803 | G135: 127 | H135: 3.67 | I135: 8
A136: 01 | B136: 北海道 | C136: 01562 | D136: 西興部村 | E136: 806 | F136: 47,803 | G136: 42 | H136: 3.67 | I136: 3
A137: 01 | B137: 北海道 | C137: 01563 | D137: 雄武町 | E137: 806 | F137: 47,803 | G137: 113 | H137: 3.67 | I137: 7
A138: 01 | B138: 北海道 | C138: 01564 | D138: 大空町 | E138: 806 | F138: 47,803 | G138: 643 | H138: 3.67 | I138: 40
A139: 01 | B139: 北海道 | C139: 01571 | D139: 豊浦町 | E139: 806 | F139: 47,803 | G139: 113 | H139: 3.67 | I139: 7
A140: 01 | B140: 北海道 | C140: 01575 | D140: 壮瞥町 | E140: 806 | F140: 47,803 | G140: 74 | H140: 3.67 | I140: 5
A141: 01 | B141: 北海道 | C141: 01578 | D141: 白老町 | E141: 806 | F141: 47,803 | G141: 539 | H141: 3.67 | I141: 33
A142: 01 | B142: 北海道 | C142: 01581 | D142: 厚真町 | E142: 806 | F142: 47,803 | G142: 273 | H142: 3.67 | I142: 17
A143: 01 | B143: 北海道 | C143: 01584 | D143: 洞爺湖町 | E143: 806 | F143: 47,803 | G143: 137 | H143: 3.67 | I143: 8
A144: 01 | B144: 北海道 | C144: 01585 | D144: 安平町 | E144: 806 | F144: 47,803 | G144: 225 | H144: 3.67 | I144: 14
A145: 01 | B145: 北海道 | C145: 01586 | D145: むかわ町 | E145: 806 | F145: 47,803 | G145: 250 | H145: 3.67 | I145: 15
A146: 01 | B146: 北海道 | C146: 01601 | D146: 日高町 | E146: 806 | F146: 47,803 | G146: 1,056 | H146: 3.67 | I146: 65
A147: 01 | B147: 北海道 | C147: 01602 | D147: 平取町 | E147: 806 | F147: 47,803 | G147: 187 | H147: 3.67 | I147: 12
A148: 01 | B148: 北海道 | C148: 01604 | D148: 新冠町 | E148: 806 | F148: 47,803 | G148: 609 | H148: 3.67 | I148: 38
A149: 01 | B149: 北海道 | C149: 01607 | D149: 浦河町 | E149: 806 | F149: 47,803 | G149: 1,346 | H149: 3.67 | I149: 83
A150: 01 | B150: 北海道 | C150: 01608 | D150: 様似町 | E150: 806 | F150: 47,803 | G150: 258 | H150: 3.67 | I150: 16
A151: 01 | B151: 北海道 | C151: 01609 | D151: えりも町 | E151: 806 | F151: 47,803 | G151: 337 | H151: 3.67 | I151: 21
A152: 01 | B152: 北海道 | C152: 01610 | D152: 新ひだか町 | E152: 806 | F152: 47,803 | G152: 1,256 | H152: 3.67 | I152: 78
A153: 01 | B153: 北海道 | C153: 01631 | D153: 音更町 | E153: 806 | F153: 47,803 | G153: 647 | H153: 3.67 | I153: 40
A154: 01 | B154: 北海道 | C154: 01632 | D154: 士幌町 | E154: 806 | F154: 47,803 | G154: 424 | H154: 3.67 | I154: 26
A155: 01 | B155: 北海道 | C155: 01633 | D155: 上士幌町 | E155: 806 | F155: 47,803 | G155: 305 | H155: 3.67 | I155: 19
A156: 01 | B156: 北海道 | C156: 01634 | D156: 鹿追町 | E156: 806 | F156: 47,803 | G156: 238 | H156: 3.67 | I156: 15
A157: 01 | B157: 北海道 | C157: 01635 | D157: 新得町 | E157: 806 | F157: 47,803 | G157: 423 | H157: 3.67 | I157: 26
A158: 01 | B158: 北海道 | C158: 01636 | D158: 清水町 | E158: 806 | F158: 47,803 | G158: 409 | H158: 3.67 | I158: 25
A159: 01 | B159: 北海道 | C159: 01637 | D159: 芽室町 | E159: 806 | F159: 47,803 | G159: 643 | H159: 3.67 | I159: 40
A160: 01 | B160: 北海道 | C160: 01638 | D160: 中札内村 | E160: 806 | F160: 47,803 | G160: 455 | H160: 3.67 | I160: 28
A161: 01 | B161: 北海道 | C161: 01639 | D161: 更別村 | E161: 806 | F161: 47,803 | G161: 88 | H161: 3.67 | I161: 5
A162: 01 | B162: 北海道 | C162: 01641 | D162: 大樹町 | E162: 806 | F162: 47,803 | G162: 401 | H162: 3.67 | I162: 25
A163: 01 | B163: 北海道 | C163: 01642 | D163: 広尾町 | E163: 806 | F163: 47,803 | G163: 338 | H163: 3.67 | I163: 21
A164: 01 | B164: 北海道 | C164: 01643 | D164: 幕別町 | E164: 806 | F164: 47,803 | G164: 778 | H164: 3.67 | I164: 48
A165: 01 | B165: 北海道 | C165: 01644 | D165: 池田町 | E165: 806 | F165: 47,803 | G165: 51 | H165: 3.67 | I165: 3
A166: 01 | B166: 北海道 | C166: 01645 | D166: 豊頃町 | E166: 806 | F166: 47,803 | G166: 216 | H166: 3.67 | I166: 13
A167: 01 | B167: 北海道 | C167: 01646 | D167: 本別町 | E167: 806 | F167: 47,803 | G167: 178 | H167: 3.67 | I167: 11
A168: 01 | B168: 北海道 | C168: 01647 | D168: 足寄町 | E168: 806 | F168: 47,803 | G168: 331 | H168: 3.67 | I168: 20
A169: 01 | B169: 北海道 | C169: 01648 | D169: 陸別町 | E169: 806 | F169: 47,803 | G169: 248 | H169: 3.67 | I169: 15
A170: 01 | B170: 北海道 | C170: 01649 | D170: 浦幌町 | E170: 806 | F170: 47,803 | G170: 310 | H170: 3.67 | I170: 19
A171: 01 | B171: 北海道 | C171: 01661 | D171: 釧路町 | E171: 806 | F171: 47,803 | G171: 139 | H171: 3.67 | I171: 9
A172: 01 | B172: 北海道 | C172: 01662 | D172: 厚岸町 | E172: 806 | F172: 47,803 | G172: 304 | H172: 3.67 | I172: 19
A173: 01 | B173: 北海道 | C173: 01663 | D173: 浜中町 | E173: 806 | F173: 47,803 | G173: 215 | H173: 3.67 | I173: 13
A174: 01 | B174: 北海道 | C174: 01664 | D174: 標茶町 | E174: 806 | F174: 47,803 | G174: 271 | H174: 3.67 | I174: 17
A175: 01 | B175: 北海道 | C175: 01665 | D175: 弟子屈町 | E175: 806 | F175: 47,803 | G175: 122 | H175: 3.67 | I175: 8
A176: 01 | B176: 北海道 | C176: 01667 | D176: 鶴居村 | E176: 806 | F176: 47,803 | G176: 256 | H176: 3.67 | I176: 16
A177: 01 | B177: 北海道 | C177: 01668 | D177: 白糠町 | E177: 806 | F177: 47,803 | G177: 204 | H177: 3.67 | I177: 13
A178: 01 | B178: 北海道 | C178: 01691 | D178: 別海町 | E178: 806 | F178: 47,803 | G178: 754 | H178: 3.67 | I178: 47
A179: 01 | B179: 北海道 | C179: 01692 | D179: 中標津町 | E179: 806 | F179: 47,803 | G179: 384 | H179: 3.67 | I179: 24
A180: 01 | B180: 北海道 | C180: 01693 | D180: 標津町 | E180: 806 | F180: 47,803 | G180: 319 | H180: 3.67 | I180: 20
A181: 01 | B181: 北海道 | C181: 01694 | D181: 羅臼町 | E181: 806 | F181: 47,803 | G181: 792 | H181: 3.67 | I181: 49
A182: 02 | B182: 青森県 | C182: 02201 | D182: 青森市 | E182: 161 | F182: 9,894 | G182: 484 | H182: 3.67 | I182: 29
A183: 02 | B183: 青森県 | C183: 02202 | D183: 弘前市 | E183: 161 | F183: 9,894 | G183: 577 | H183: 3.67 | I183: 34
A184: 02 | B184: 青森県 | C184: 02203 | D184: 八戸市 | E184: 161 | F184: 9,894 | G184: 1,400 | H184: 3.67 | I184: 84
A185: 02 | B185: 青森県 | C185: 02204 | D185: 黒石市 | E185: 161 | F185: 9,894 | G185: 180 | H185: 3.67 | I185: 11
A186: 02 | B186: 青森県 | C186: 02205 | D186: 五所川原市 | E186: 161 | F186: 9,894 | G186: 379 | H186: 3.67 | I186: 23
A187: 02 | B187: 青森県 | C187: 02206 | D187: 十和田市 | E187: 161 | F187: 9,894 | G187: 896 | H187: 3.67 | I187: 54
A188: 02 | B188: 青森県 | C188: 02207 | D188: 三沢市 | E188: 161 | F188: 9,894 | G188: 364 | H188: 3.67 | I188: 22
A189: 02 | B189: 青森県 | C189: 02208 | D189: むつ市 | E189: 161 | F189: 9,894 | G189: 489 | H189: 3.67 | I189: 29
A190: 02 | B190: 青森県 | C190: 02209 | D190: つがる市 | E190: 161 | F190: 9,894 | G190: 204 | H190: 3.67 | I190: 12
A191: 02 | B191: 青森県 | C191: 02210 | D191: 平川市 | E191: 161 | F191: 9,894 | G191: 432 | H191: 3.67 | I191: 26
A192: 02 | B192: 青森県 | C192: 02301 | D192: 平内町 | E192: 161 | F192: 9,894 | G192: 67 | H192: 3.67 | I192: 4
A193: 02 | B193: 青森県 | C193: 02303 | D193: 今別町 | E193: 161 | F193: 9,894 | G193: 22 | H193: 3.67 | I193: 1
A194: 02 | B194: 青森県 | C194: 02304 | D194: 蓬田村 | E194: 161 | F194: 9,894 | G194: 29 | H194: 3.67 | I194: 2
A195: 02 | B195: 青森県 | C195: 02307 | D195: 外ヶ浜町 | E195: 161 | F195: 9,894 | G195: 60 | H195: 3.67 | I195: 4
A196: 02 | B196: 青森県 | C196: 02321 | D196: 鰺ヶ沢町 | E196: 161 | F196: 9,894 | G196: 94 | H196: =44/12 -> 3.67 | I196: =E196/F196*G196*H196 -> 6
A197: 02 | B197: 青森県 | C197: 02323 | D197: 深浦町 | E197: 161 | F197: 9,894 | G197: 381 | H197: 3.67 | I197: 23
A198: 02 | B198: 青森県 | C198: 02343 | D198: 西目屋村 | E198: 161 | F198: 9,894 | G198: 24 | H198: 3.67 | I198: 1
A199: 02 | B199: 青森県 | C199: 02361 | D199: 藤崎町 | E199: 161 | F199: 9,894 | G199: 95 | H199: 3.67 | I199: 6
A200: 02 | B200: 青森県 | C200: 02362 | D200: 大鰐町 | E200: 161 | F200: 9,894 | G200: 83 | H200: 3.67 | I200: 5
... 1543 more rows
